Workbook

Sheet Mittelhilfstabelle
A2: Stunde | B2: Wind | C2: Luftfeuchtigkeit | D2: Luftdruck | E2: Taupunkttemperatur | F2: Bewölkung | H2: Stunde | I2: Wind | J2: Luftfeuchtigkeit | K2: Luftdruck | L2: Taupunkttemperatur | M2: Bewölkung
A3: 00 | B3: 2 | C3: 89 | D3: 1020.2 | E3: 3.1 | F3: 1 | H3: 00 | I3: 1 | J3: 82 | K3: 1017.6 | L3: 2.1 | M3: 5
A4: 01 | B4: 2 | C4: 90 | D4: 1020.5 | E4: 2.8 | F4: 1 | H4: 01 | I4: 2 | J4: 79 | K4: 1017.2 | L4: 2.3 | M4: 5
A5: 02 | B5: 1 | C5: 93 | D5: 1021 | E5: 2 | F5: 0 | H5: 02 | I5: 2 | J5: 79 | K5: 1016.9 | L5: 2.1 | M5: 5
A6: 03 | B6: 1 | C6: 94 | D6: 1021.6 | E6: 1.7 | F6: 1 | H6: 03 | I6: 1 | J6: 83 | K6: 1016.7 | L6: 2.1 | M6: 5
A7: 04 | B7: 2 | C7: 93 | D7: 1021.8 | E7: 2 | F7: 3 | H7: 04 | I7: 1 | J7: 84 | K7: 1016.1 | L7: 2.5 | M7: 5
A8: 05 | B8: 2 | C8: 93 | D8: 1021.9 | E8: 1.8 | F8: 1 | H8: 05 | I8: 1 | J8: 88 | K8: 1015.9 | L8: 2.2 | M8: 7
A9: 06 | B9: 2 | C9: 92 | D9: 1022.3 | E9: 2.7 | F9: 1 | H9: 06 | I9: 0 | J9: 84 | K9: 1016.1 | L9: 2.8 | M9: 7
A10: 07 | B10: 1 | C10: 89 | D10: 1022.4 | E10: 4.4 | F10: 1 | H10: 07 | I10: 1 | J10: 79 | K10: 1015.8 | L10: 4.9 | M10: 7
A11: 08 | B11: 2 | C11: 81 | D11: 1022.7 | E11: 4.8 | F11: 2 | H11: 08 | I11: 2 | J11: 62 | K11: 1015.4 | L11: 4.4 | M11: 5
A12: 09 | B12: 1 | C12: 71 | D12: 1022.7 | E12: 3.7 | F12: 3 | H12: 09 | I12: 2 | J12: 56 | K12: 1015 | L12: 4.9 | M12: 7
A13: 10 | B13: 1 | C13: 60 | D13: 1022.8 | E13: 2.2 | F13: 3 | H13: 10 | I13: 2 | J13: 55 | K13: 1014.6 | L13: 6.6 | M13: 7
A14: 11 | B14: 1 | C14: 60 | D14: 1022.4 | E14: 3.2 | F14: 4 | H14: 11 | I14: 2 | J14: 55 | K14: 1014.4 | L14: 5.9 | M14: 8
A15: 12 | B15: 1 | C15: 53 | D15: 1021.9 | E15: 1.9 | F15: 5 | H15: 12 | I15: 2 | J15: 53 | K15: 1014.4 | L15: 4.7 | M15: 7
A16: 13 | B16: 1 | C16: 60 | D16: 1021.2 | E16: 5.1 | F16: 5 | H16: 13 | I16: 2 | J16: 74 | K16: 1014.3 | L16: 9.2 | M16: 7
A17: 14 | B17: 1 | C17: 55 | D17: 1020.6 | E17: 4 | F17: 5 | H17: 14 | I17: 2 | J17: 65 | K17: 1013.5 | L17: 8.5 | M17: 7
A18: 15 | B18: 1 | C18: 53 | D18: 1019.6 | E18: 4 | F18: 5 | H18: 15 | I18: 2 | J18: 61 | K18: 1012.9 | L18: 7.7 | M18: 6
A19: 16 | B19: 1 | C19: 54 | D19: 1019 | E19: 4.1 | F19: 6 | H19: 16 | I19: 2 | J19: 62 | K19: 1012.4 | L19: 7.6 | M19: 5
A20: 17 | B20: 2 | C20: 53 | D20: 1018.4 | E20: 3.1 | F20: 7 | H20: 17 | I20: 2 | J20: 58 | K20: 1012 | L20: 6.5 | M20: 4
A21: 18 | B21: 2 | C21: 60 | D21: 1018.2 | E21: 4.6 | F21: 7 | H21: 18 | I21: 2 | J21: 61 | K21: 1011.9 | L21: 6.4 | M21: 5
A22: 19 | B22: 2 | C22: 64 | D22: 1018.1 | E22: 3.9 | F22: 7 | H22: 19 | I22: 1 | J22: 72 | K22: 1011.7 | L22: 6.8 | M22: 7
A23: 20 | B23: 2 | C23: 72 | D23: 1018.2 | E23: 4 | F23: 7 | H23: 20 | I23: 2 | J23: 74 | K23: 1011.6 | L23: 6.1 | M23: 7
A24: 21 | B24: 2 | C24: 73 | D24: 1018 | E24: 3.3 | F24: 7 | H24: 21 | I24: 2 | J24: 72 | K24: 1010.9 | L24: 5.8 | M24: 6
A25: 22 | B25: 1 | C25: 82 | D25: 1017.8 | E25: 3.2 | F25: 7 | H25: 22 | I25: 2 | J25: 76 | K25: 1011.2 | L25: 6.3 | M25: 7
A26: 23 | B26: 1 | C26: 83 | D26: 1017.5 | E26: 2.7 | F26: 5 | H26: 23 | I26: 0 | J26: 83 | K26: 1011 | L26: 6.4 | M26: 8
A27: Mittel | B27: =ROUND(AVERAGE(B3:B26),1) -> 1.5 | C27: =ROUND(AVERAGE(C3:C26),1) -> 73.6 | D27: =ROUND(AVERAGE(D3:D26),1) -> 1020.5 | E27: =AVERAGE(E3:E26) -> 3.2625 | F27: =ROUND(AVERAGE(F3:F26),1) -> 3.9 | H27: Mittel | I27: =ROUND(AVERAGE(I3:I26),1) -> 1.6 | J27: =ROUND(AVERAGE(J3:J26),1) -> 70.7 | K27: =ROUND(AVERAGE(K3:K26),1) -> 1014.1 | L27: =AVERAGE(L3:L26) -> 5.2 | M27: =ROUND(AVERAGE(M3:M26),1) -> 6.2
E29: 2015-04-29 | L29: 2015-04-30
A32: Stunde | B32: Wind | C32: Luftfeuchtigkeit | D32: Luftdruck | E32: Taupunkttemperatur | F32: Bewölkung | H32: Stunde | I32: Wind | J32: Luftfeuchtigkeit | K32: Luftdruck | L32: Taupunkttemperatur | M32: Bewölkung
A33: 00 | B33: 1 | C33: 90 | D33: 1005.2 | E33: 9.8 | F33: 7 | H33: 00 | I33: 2 | J33: 98 | K33: 1004.1 | L33: 8.9 | M33: 7
A34: 01 | B34: 0 | C34: 94 | D34: 1004.4 | E34: 9.7 | F34: 3 | H34: 01 | I34: 2 | J34: 98 | K34: 1004.5 | L34: 8 | M34: 8
A35: 02 | B35: 1 | C35: 95 | D35: 1004 | E35: 9.5 | F35: 1 | H35: 02 | I35: 2 | J35: 98 | K35: 1004.7 | L35: 7 | M35: 8
A36: 03 | B36: 1 | C36: 94 | D36: 1003.3 | E36: 9 | F36: 0 | H36: 03 | I36: 2 | J36: 98 | K36: 1005.2 | L36: 5.9 | M36: 8
A37: 04 | B37: 0 | C37: 95 | D37: 1002.7 | E37: 8.1 | F37: 3 | H37: 04 | I37: 1 | J37: 98 | K37: 1005.3 | L37: 5.8 | M37: 7
A38: 05 | B38: 1 | C38: 96 | D38: 1002.2 | E38: 8.8 | F38: 5 | H38: 05 | I38: 1 | J38: 97 | K38: 1006.3 | L38: 5.7 | M38: 8
A39: 06 | B39: 0 | C39: 95 | D39: 1001.9 | E39: 9.5 | F39: 2 | H39: 06 | I39: 1 | J39: 97 | K39: 1006.7 | L39: 5.7 | M39: 8
A40: 07 | B40: 1 | C40: 89 | D40: 1001.5 | E40: 11.4 | F40: 5 | H40: 07 | I40: 2 | J40: 97 | K40: 1007.2 | L40: 5.8 | M40: 8
A41: 08 | B41: 1 | C41: 85 | D41: 1001.3 | E41: 13.4 | F41: 7 | H41: 08 | I41: 2 | J41: 95 | K41: 1008 | L41: 4.9 | M41: 8
A42: 09 | B42: 1 | C42: 76 | D42: 1001.3 | E42: 13.5 | F42: 7 | H42: 09 | I42: 3 | J42: 96 | K42: 1008.8 | L42: 4.7 | M42: 8
A43: 10 | B43: 2 | C43: 75 | D43: 1001.7 | E43: 13.5 | F43: 6 | H43: 10 | I43: 2 | J43: 96 | K43: 1010.2 | L43: 4.1 | M43: 8
A44: 11 | B44: 1 | C44: 64 | D44: 1001.7 | E44: 12.5 | F44: 5 | H44: 11 | I44: 2 | J44: 96 | K44: 1011.3 | L44: 2.9 | M44: 8
A45: 12 | B45: 1 | C45: 59 | D45: 1001.2 | E45: 13 | F45: 5 | H45: 12 | I45: 2 | J45: 97 | K45: 1012.4 | L45: 2.4 | M45: 8
A46: 13 | B46: 1 | C46: 56 | D46: 1000.5 | E46: 13.4 | F46: 5 | H46: 13 | I46: 2 | J46: 97 | K46: 1013.3 | L46: 1.6 | M46: 8
A47: 14 | B47: 1 | C47: 46 | D47: 999.6 | E47: 11.6 | F47: 4 | H47: 14 | I47: 2 | J47: 98 | K47: 1014.1 | L47: 3.2 | M47: 8
A48: 15 | B48: 2 | C48: 44 | D48: 999.1 | E48: 11.5 | F48: 7 | H48: 15 | I48: 1 | J48: 97 | K48: 1014.7 | L48: 4.5 | M48: 8
A49: 16 | B49: 3 | C49: 59 | D49: 999.3 | E49: 12.5 | F49: 8 | H49: 16 | I49: 1 | J49: 96 | K49: 1015.1 | L49: 4.7 | M49: 8
A50: 17 | B50: 3 | C50: 86 | D50: 1001.4 | E50: 11.6 | F50: 8 | H50: 17 | I50: 1 | J50: 94 | K50: 1015.5 | L50: 5.2 | M50: 8
A51: 18 | B51: 3 | C51: 95 | D51: 1002.1 | E51: 11.3 | F51: 8 | H51: 18 | I51: 1 | J51: 94 | K51: 1016 | L51: 5.7 | M51: 7
A52: 19 | B52: 2 | C52: 96 | D52: 1002 | E52: 10.2 | F52: 8 | H52: 19 | I52: 1 | J52: 95 | K52: 1016.7 | L52: 5.4 | M52: 7
A53: 20 | B53: 1 | C53: 97 | D53: 1003.4 | E53: 10.2 | F53: 8 | H53: 20 | I53: 1 | J53: 97 | K53: 1017.7 | L53: 4.7 | M53: 6
A54: 21 | B54: 2 | C54: 97 | D54: 1003.8 | E54: 9.8 | F54: 8 | H54: 21 | I54: 1 | J54: 95 | K54: 1018.1 | L54: 4.3 | M54: 7
A55: 22 | B55: 2 | C55: 98 | D55: 1003.6 | E55: 9.9 | F55: 8 | H55: 22 | I55: 1 | J55: 95 | K55: 1018.6 | L55: 3.8 | M55: 6
A56: 23 | B56: 2 | C56: 98 | D56: 1003.8 | E56: 9.6 | F56: 8 | H56: 23 | I56: 1 | J56: 95 | K56: 1019.6 | L56: 3.4 | M56: 4
A57: Mittel | B57: =ROUND(AVERAGE(B33:B56),1) -> 1.4 | C57: =ROUND(AVERAGE(C33:C56),1) -> 82.5 | D57: =ROUND(AVERAGE(D33:D56),1) -> 1002.1 | E57: =ROUND(AVERAGE(E33:E56),1) -> 11 | F57: =ROUND(AVERAGE(F33:F56),1) -> 5.7 | H57: Mittel | I57: =ROUND(AVERAGE(I33:I56),1) -> 1.5 | J57: =ROUND(AVERAGE(J33:J56),1) -> 96.4 | K57: =ROUND(AVERAGE(K33:K56),1) -> 1011.4 | L57: =ROUND(AVERAGE(L33:L56),1) -> 4.9 | M57: =ROUND(AVERAGE(M33:M56),1) -> 7.5
E59: 2015-04-27 | L59: 2015-04-28

Sheet Kurztabelle
A2: Wetterwarte: Köttewitz | L2: Monat: | M2: April | R2: Jahr: | U2: 2015
A4: Dat. | B4: TTT | C4: TxTx | D4: TnTn | E4: Tg | F4: Umin. | G4: UU | H4: NN | I4: RRRR | J4: Art | L4: sss | M4: PPPP | N4: eee | O4: fff | R4: Tage mit | V4: fk | W4: Summe
J5: * | O5: Bft | P5: SS | Q5: Art ( D ) | R5: RR | S5: Ge | T5: Bf6 | U5: Bf8 | V5: Bft | W5: Gewitter
A6: 01. | B6: 3.6 | C6: 6.7 | D6: 1.3 | E6: 0 | F6: 68 | G6: 80 | H6: 7.4 | I6: 6.2 | J6: R;H | L6: 1.4 | M6: 1008 | N6: 0.6 | O6: 3 | R6: 1 | S6: 1 | T6: 1 | U6: 1 | V6: 8 | W6: 2 | AA6: max >=30,0°C | AB6: max >=25,0°C | AC6: max <0,0°C | AE6: RR >=0,1 mm | AF6: RR >=1,0 mm | AG6: RR >=3,0 mm | AH6: RR >=10,0 mm | AI6: RR >=20,0 mm
A7: 02. | B7: 2.2 | C7: 5.2 | D7: 0.7 | E7: 0 | F7: 77 | G7: 91 | H7: 7 | I7: 9 | J7: S;R | L7: 1.2 | M7: 1009.1 | N7: 0.9 | O7: 3 | P7: 3 | Q7: D | R7: 1 | T7: 1 | V7: 6 | AA7: =COUNTIF(C6:C15,">=30") -> 0 | AB7: =COUNTIF(C6:C15,">=25") -> 0 | AC7: =COUNTIF(C6:C15,"<0") -> 0 | AE7: =COUNTIF(I6:I15,">=0,1") -> 7 | AF7: =COUNTIF(I6:I15,">=1") -> 3 | AG7: =COUNTIF(I6:I15,">=3") -> 2 | AH7: =COUNTIF(I6:I15,">=10") -> 0 | AI7: =COUNTIF(I6:I15,">=20") -> 0
A8: 03. | B8: 4 | C8: 7.2 | D8: 2.2 | E8: 1.1 | F8: 67 | G8: 80 | H8: 6.5 | I8: 0.4 | J8: G | L8: 1.2 | M8: 1018 | N8: 0.8 | O8: 3 | P8: 0 | Q8: V | R8: 1 | T8: 1 | V8: 6 | AA8: =COUNTIF(C18:C27,">=30") -> 0 | AB8: =COUNTIF(C18:C27,">=25") -> 0 | AC8: =COUNTIF(C18:C27,"<0") -> 0 | AE8: =COUNTIF(I18:I27,">=0,1") -> 5 | AF8: =COUNTIF(I18:I27,">=1") -> 1 | AG8: =COUNTIF(I18:I27,">=3") -> 0 | AH8: =COUNTIF(I18:I27,">=10") -> 0 | AI8: =COUNTIF(I18:I27,">=20") -> 0
A9: 04. | B9: 3.4 | C9: 9.3 | D9: -0.9 | E9: -2.8 | F9: 47 | G9: 78 | H9: 4.8 | I9: 0.6 | J9: R | L9: 4.7 | M9: 1015.9 | N9: -0.2 | O9: 1 | R9: 1 | V9: 4 | AA9: =COUNTIF(C30:C39,">=30") -> 0 | AB9: =COUNTIF(C30:C39,">=25") -> 0 | AC9: =COUNTIF(C30:C39,"<0") -> 0 | AE9: =COUNTIF(I30:I39,">=0,1") -> 4 | AF9: =COUNTIF(I30:I39,">=1") -> 4 | AG9: =COUNTIF(I30:I39,">=3") -> 3 | AH9: =COUNTIF(I30:I39,">=10") -> 2 | AI9: =COUNTIF(I30:I39,">=20") -> 0
A10: 05. | B10: 3.2 | C10: 8.2 | D10: -1.6 | E10: -2.8 | F10: 54 | G10: 77 | H10: 2.8 | I10: . | L10: 3.7 | M10: 1021.6 | N10: -0.6 | O10: 1 | V10: 4
A11: 06. | B11: 2.8 | C11: 6.6 | D11: -0.4 | E11: -2.2 | F11: 66 | G11: 83 | H11: 5.6 | I11: 2 | J11: G;R | L11: 1.8 | M11: 1026.5 | N11: 0.1 | O11: 1 | P11: 0 | Q11: V | R11: 1 | V11: 5 | AA11: min <0,0°C | AB11: min <0-10,0°C | AE11: rel.Lf. 14h >=70% | AG11: rel.Lf. 14h <=40%
A12: 07. | B12: 6.2 | C12: 11.8 | D12: -0.9 | E12: -2.8 | F12: 48 | G12: 72 | H12: 4.9 | I12: 0.9 | J12: R | L12: 5.9 | M12: 1033.1 | N12: 1 | O12: 2 | R12: 1 | V12: 5 | AA12: =COUNTIF(D6:D15,"<0") -> 4 | AB12: =COUNTIF(D6:D15,"<=-10") -> 0 | AE12: =COUNTIF(F6:F15,">=70") -> 2 | AG12: =COUNTIF(F6:F15,"<=40") -> 0
A13: 08. | B13: 7.2 | C13: 8.2 | D13: 6.5 | E13: 5 | F13: 76 | G13: 86 | H13: 8 | I13: 0.1 | J13: R | L13: . | M13: 1030.7 | N13: 5.1 | O13: 2 | R13: 1 | V13: 5 | AA13: =COUNTIF(D18:D27,"<0") -> 0 | AB13: =COUNTIF(D18:D27,"<=-10") -> 0 | AE13: =COUNTIF(F18:F27,">=70") -> 0 | AG13: =COUNTIF(F18:F27,"<=40") -> 6
A14: 09. | B14: 9.8 | C14: 15.6 | D14: 5.9 | E14: 5 | F14: 56 | G14: 78 | H14: 4.8 | I14: . | L14: 8.8 | M14: 1029.2 | N14: 6 | O14: 2 | V14: 5 | AA14: =COUNTIF(D30:D39,"<0") -> 0 | AB14: =COUNTIF(D30:D39,"<=-10") -> 0 | AE14: =COUNTIF(F30:F39,">=70") -> 1 | AG14: =COUNTIF(F30:F39,"<=40") -> 4
A15: 10. | B15: 11.7 | C15: 18.9 | D15: 3.8 | E15: 2.2 | F15: 46 | G15: 73 | H15: 0.5 | I15: . | L15: 9.2 | M15: 1022.6 | N15: 6.5 | O15: 1 | V15: 2
A16: Su | B16: =SUM(B6:B15) -> 54.1 | C16: =SUM(C6:C15) -> 97.7 | D16: 16.6 | E16: 2.7 | F16: XXX | G16: XXX | H16: XXX | I16: =SUM(I6:I15) -> 19.2 | J16: XX | L16: =SUM(L6:L15) -> 37.9 | M16: XXX | N16: XXX | O16: XXX | P16: XXX | Q16: X | R16: =SUM(R6:R15) -> 7 | S16: =SUM(S6:S15) -> 1 | T16: 3 | U16: 1 | V16: XXX | AA16: ohne Sonne | AB16: Son. 0,1-0,9 | AC16: Son. >=10,0 | AE16: Sch. >=1 cm | AF16: Sch. >=3 cm | AG16: Sch. >=10 cm
A17: Mi | B17: =AVERAGE(B6:B15) -> 5.41 | C17: =AVERAGE(C6:C15) -> 9.77 | D17: 1.66 | E17: 0.27 | F17: XXX | G17: 79.8 | H17: 5.23 | I17: XXX | J17: XX | L17: =L16/10 -> 3.79 | M17: =AVERAGE(M6:M15) -> 1021.47 | N17: =AVERAGE(N6:N15) -> 2.02 | O17: 1.9 | P17: =ROUND(AVERAGE(P6:P15),1) -> 1 | Q17: X | R17: XX | S17: XX | T17: XX | U17: XX | V17: =AVERAGE(V6:V15) -> 5 | AA17: =COUNTIF(L6:L15,".") -> 1 | AB17: =COUNTIF(L6:L15,"<1") -> 0 | AC17: =COUNTIF(L6:L15,">=10") -> 0 | AE17: =COUNTIF(P6:P15,">=1") -> 1 | AF17: =COUNTIF(P6:P15,">=3") -> 1 | AG17: =COUNTIF(P6:P15,">=10") -> 0
A18: 11. | B18: 14.4 | C18: 22.1 | D18: 7.2 | E18: 3.9 | F18: 28 | G18: 64 | H18: 4.9 | I18: 0.9 | J18: R | L18: 4.7 | M18: 1019 | N18: 6.6 | O18: 2 | R18: 1 | T18: 1 | V18: 6 | AA18: =COUNTIF(L18:L27,".") -> 0 | AB18: =COUNTIF(L18:L27,"<1") -> 0 | AC18: =COUNTIF(L18:L27,">=10") -> 1 | AE18: =COUNTIF(P18:P27,">=1") -> 0 | AF18: =COUNTIF(P18:P27,">=3") -> 0 | AG18: =COUNTIF(P18:P27,">=10") -> 0
A19: 12. | B19: 10.8 | C19: 15.7 | D19: 6.1 | E19: 4.4 | F19: 38 | G19: 64 | H19: 6.1 | I19: . | L19: 7 | M19: 1027.3 | N19: 3.9 | O19: 2 | T19: 1 | V19: 6 | AA19: =COUNTIF(L30:L39,".") -> 1 | AB19: =COUNTIF(L30:L39,"<1") -> 1 | AC19: =COUNTIF(L30:L39,">=10") -> 3 | AE19: =COUNTIF(P30:P39,">=1") -> 0 | AF19: =COUNTIF(P30:P39,">=3") -> 0 | AG19: =COUNTIF(P30:P39,">=10") -> 0
A20: 13. | B20: 10.1 | C20: 13.2 | D20: 5.7 | E20: 3.9 | F20: 37 | G20: 60 | H20: 5 | I20: 0.1 | J20: R | L20: 3.9 | M20: 1025.7 | N20: 2.8 | O20: 3 | R20: 1 | T20: 1 | V20: 7
A21: 14. | B21: 10.3 | C21: 15.6 | D21: 2.4 | E21: 1.1 | F21: 35 | G21: 62 | H21: 4.7 | I21: . | L21: 8.3 | M21: 1025.8 | N21: 2.7 | O21: 2 | V21: 5 | AA21: Max TT | AB21: Max TxTx | AC21: Min TgTg | AE21: Max RR
A22: 15. | B22: 16.6 | C22: 23.1 | D22: 10.4 | E22: 6.7 | F22: 31 | G22: 56 | H22: 2.5 | I22: . | L22: 9.9 | M22: 1015.9 | N22: 7.2 | O22: 2 | V22: 5 | AA22: =MAX(B6:B15,B18:B27,B30:B39) -> 16.6 | AB22: =MAX(C6:C15,C18:C27,C30:C39) -> 24.8 | AC22: =MIN(E6:E15,E18:E27,E30:E39) -> -2.8 | AE22: =MAX(I6:I15,I18:I27,I30:I39) -> 17
A23: 16. | B23: 12 | C23: 15.2 | D23: 8.4 | E23: 6.1 | F23: 56 | G23: 72 | H23: 7 | I23: 1.1 | J23: R | L23: 3.6 | M23: 1012.7 | N23: 7.2 | O23: 2 | R23: 1 | V23: 4 | AA23: Min TT | AB23: Min TnTn | AC23: Min U14 | AE23: Max SS
A24: 17. | B24: 8.2 | C24: 12.6 | D24: 4.9 | E24: 2.8 | F24: 51 | G24: 69 | H24: 6 | I24: 0.3 | J24: R | L24: 2.1 | M24: 1014.5 | N24: 2.8 | O24: 2 | R24: 1 | V24: 4 | AA24: =MIN(B6:B15,B18:B27,B30:B39) -> 2.2 | AB24: =MIN(D6:D15,D18:D27,D30:D39) -> -1.6 | AC24: =MIN(F6:F15,F18:F27,F30:F39) -> 28 | AE24: =MAX(P6:P15,P18:P27,P30:P39) -> 3
A25: 18. | B25: 6.2 | C25: 9.8 | D25: 2.7 | E25: 0.6 | F25: 53 | G25: 71 | H25: 5.5 | I25: 0.1 | J25: G | L25: 1.7 | M25: 1022.9 | N25: 1.3 | O25: 2 | R25: 1 | V25: 4
A26: 19. | B26: 7.6 | C26: 14.6 | D26: 0 | E26: -1.7 | F26: 41 | G26: 66 | H26: 2.1 | I26: . | L26: 9.5 | M26: 1022.6 | N26: 1 | O26: 1 | V26: 4
A27: 20. | B27: 10.7 | C27: 17.8 | D27: 2.7 | E27: 1.1 | F27: 39 | G27: 62 | H27: 2.8 | I27: . | L27: 10 | M27: 1023.5 | N27: 3.2 | O27: 2 | V27: 5
A28: Su | B28: =SUM(B18:B27) -> 106.9 | C28: =SUM(C18:C27) -> 159.7 | D28: 50.5 | E28: 28.9 | F28: XXX | G28: XXX | H28: XXX | I28: =SUM(I18:I27) -> 2.5 | J28: XX | L28: =SUM(L18:L27) -> 60.7 | M28: XXX | N28: XXX | O28: XXX | P28: XXX | Q28: X | R28: =SUM(R18:R27) -> 5 | S28: =SUM(S18:S27) -> 0 | T28: 3 | U28: 0 | V28: XXX
A29: Mi | B29: =AVERAGE(B18:B27) -> 10.69 | C29: =AVERAGE(C18:C27) -> 15.97 | D29: 5.05 | E29: 2.89 | F29: 40.9 | G29: 64.6 | H29: 4.66 | I29: XXX | J29: XX | L29: =L28/10 -> 6.07 | M29: =AVERAGE(M18:M27) -> 1020.99 | N29: =AVERAGE(N18:N27) -> 3.87 | O29: 2 | P29: =ROUND(AVERAGE(P18:P27),1) ->  | Q29: X | R29: XX | S29: XX | T29: XX | U29: XX | V29: =AVERAGE(V18:V27) -> 5
A30: 21. | B30: 12.7 | C30: 20.4 | D30: 3.1 | E30: 0.6 | F30: 33 | G30: 56 | H30: 0.8 | I30: . | L30: 10.4 | M30: 1024.8 | N30: 3.1 | O30: 2 | T30: 1 | V30: 6
A31: 22. | B31: 7.8 | C31: 12.1 | D31: 3.5 | E31: 1.1 | F31: 52 | G31: 71 | H31: 4.3 | I31: . | L31: 0.7 | M31: 1024.1 | N31: 2.9 | O31: 2 | V31: 4
A32: 23. | B32: 9.8 | C32: 17.9 | D32: 1.7 | E32: 0 | F32: 48 | G32: 74 | H32: 0.6 | I32: . | L32: 10.6 | M32: 1018.8 | N32: 4.9 | O32: 1 | V32: 3
A33: 24. | B33: 13.1 | C33: 21.2 | D33: 4.2 | E33: 2.8 | F33: 38 | G33: 66 | H33: 1 | I33: . | L33: 10.1 | M33: 1013.8 | N33: 6 | O33: 1 | V33: 4
A34: 25. | B34: 15.1 | C34: 21.1 | D34: 6.6 | E34: 3.9 | F34: 35 | G34: 61 | H34: 5.8 | I34: . | L34: 3.8 | M34: 1009.6 | N34: 7 | O34: 2 | V34: 5
A35: 26. | B35: 15.4 | C35: 20.8 | D35: 11.3 | E35: 9.3 | F35: 52 | G35: 75 | H35: 6.3 | I35: 1.3 | J35: R | L35: 3.1 | M35: 1007.2 | N35: 11.1 | O35: 1 | R35: 1 | S35: 1 | V35: 4
A36: 27. | B36: 14.4 | C36: 24.8 | D36: 8.7 | E36: 7.2 | F36: 40 | G36: 82 | H36: 5.7 | I36: 17 | J36: R | L36: 5 | M36: 1002.1 | N36: 11 | O36: 1 | R36: 1 | S36: 1 | T36: 1 | V36: 6
A37: 28. | B37: 5.3 | C37: 9.2 | D37: 1.7 | E37: 1.1 | F37: 95 | G37: 96 | H37: 7.5 | I37: 14.5 | J37: R | L37: . | M37: 1011.4 | N37: 4.9 | O37: 2 | R37: 1 | V37: 5
A38: 29. | B38: 8.1 | C38: 13.8 | D38: 2.5 | E38: 0.6 | F38: 45 | G38: 74 | H38: 3.9 | I38: . | L38: 9.7 | M38: 1020.5 | N38: 3.9 | O38: 2 | V38: 3
A39: 30. | B39: 10.6 | C39: 16.6 | D39: 3.9 | E39: 2.8 | F39: 49 | G39: 71 | H39: 6.2 | I39: 6.8 | J39: R | L39: 3.6 | M39: 1014.1 | N39: 5.2 | O39: 2 | R39: 1 | V39: 5
A40: Su | B40: =SUM(B30:B39) -> 112.3 | C40: =SUM(C30:C39) -> 177.9 | D40: =SUM(D30:D39) -> 47.2 | E40: =SUM(E30:E39) -> 29.4 | F40: XXX | G40: XXX | H40: XXX | I40: =SUM(I30:I39) -> 39.6 | J40: XX | L40: =SUM(L30:L39) -> 57 | M40: XXX | N40: XXX | O40: XXX | P40: XXX | Q40: X | R40: =SUM(R30:R39) -> 4 | S40: =SUM(S30:S39) -> 2 | T40: =SUM(T30:T39) -> 2 | U40: =SUM(U30:U39) -> 0 | V40: XXX
A41: Mi | B41: =AVERAGE(B30:B39) -> 11.23 | C41: =AVERAGE(C30:C39) -> 17.79 | D41: =AVERAGE(D30:D39) -> 4.72 | E41: =AVERAGE(E30:E39) -> 2.94 | F41: XXX | G41: =AVERAGE(G30:G39) -> 72.6 | H41: =AVERAGE(H30:H39) -> 4.21 | I41: XXX | J41: XX | L41: XXX | M41: =AVERAGE(M30:M39) -> 1014.64 | N41: =AVERAGE(N30:N39) -> 6 | O41: =AVERAGE(O30:O39) -> 1.6 | P41: =ROUND(AVERAGE(P30:P39),1) ->  | Q41: X | R41: XX | S41: XX | T41: XX | U41: XX | V41: =AVERAGE(V30:V39) -> 4.5
A42: MSu | B42: =SUM(B16+B28+B40) -> 273.3 | C42: =SUM(C16+C28+C40) -> 435.3 | D42: =SUM(D16+D28+D40) -> 114.3 | E42: =SUM(E16+E28+E40) -> 61 | F42: XXX | G42: XXX | H42: XXX | I42: =SUM(I16+I28+I40) -> 61.3 | J42: XX | L42: =SUM(L16+L28+L40) -> 155.6 | M42: XXX | N42: XXX | O42: XXX | P42: =SUM(P16+P28+P40) ->  | Q42: X | R42: =SUM(R16+R28+R40) -> 16 | S42: =SUM(S16+S28+S40) -> 3 | T42: =SUM(T16+T28+T40) -> 8 | U42: =SUM(U16+U28+U40) -> 1 | V42: XXX
A43: MMi | B43: =AVERAGE(B6:B15,B18:B27,B30:B39) -> 9.11 | C43: =AVERAGE(C6:C15,C18:C27,C30:C39) -> 14.51 | D43: =AVERAGE(D6:D15,D18:D27,D30:D39) -> 3.81 | E43: =AVERAGE(E6:E15,E18:E27,E30:E39) -> 2.033333333 | F43: XXX | G43: =AVERAGE(G6:G15,G18:G27,G30:G39) -> 72.33333333 | H43: =AVERAGE(H6:H15,H18:H27,H30:H39) -> 4.7 | I43: XXXXX | J43: XX | L43: XXXX | M43: =AVERAGE(M6:M15,M18:M27,M30:M39) -> 1019.033333 | N43: =AVERAGE(N6:N15,N18:N27,N30:N39) -> 3.963333333 | O43: =AVERAGE(O6:O15,O18:O27,O30:O39) -> 1.833333333 | P43: =ROUND(AVERAGE(P6:P15,P18:P27,P30:P39),1) -> 1 | Q43: X | R43: XX | S43: XX | T43: XX | U43: XX | V43: =AVERAGE(V17,V29,V41) -> 4.833333333
B45: Norm | C45: % v N.- | D45: Abw. | E45: Zahl der Tage | L45: Niederschlag mm | P45: Sonnensch.-dauer Std
B46: wert | C46: wert | D46: K | E46: Max.d.Lufttemp.°C | L46: >/= 0,1 | O46: =SUM(AE7:AE9) -> 16 | P46: ohne Sonne | V46: =SUM(AA17:AA19) -> 2
A47: TTT | B47: 9 | C47: XXXX | D47: =SUM(B43-B47) -> 0.11 | E47: Tropentag/Hitzetag | I47: =SUM(AA7:AA9) -> 0 | L47: >/= 1,0 | O47: =SUM(AF7:AF9) -> 8 | P47: 0,1 bis 0,9 | V47: =SUM(AB17:AB19) -> 1
A48: RRR | B48: 42 | C48: =SUM(I42*100/B48) -> 145.952381 | D48: XXXX | E48: Sommertag | I48: =SUM(AB7:AB9) -> 0 | L48: >/= 3,0 | O48: =SUM(AG7:AG9) -> 5 | P48: >/= 10,0 | V48: =SUM(AC17:AC19) -> 4
A49: sss | B49: 170 | C49: =SUM(L42*100/B49) -> 91.52941176 | D49: XXXX | E49: Eistag | I49: =SUM(AC7:AC9) -> 0 | L49: >/=10,0 | O49: =SUM(AH7:AH9) -> 2 | P49: Schneedecke cm
A50: astr. | D50: XXXX | E50: Polartag | I50: 0 | L50: >/= 20,0 | O50: =SUM(AI7:AI9) -> 0 | P50: >/= 1 | V50: =SUM(AE17:AE19) -> 1
A51: mgl. | B51: 414 | C51: =SUM(L42*100/B51) -> 37.58454106 | D51: XXXX | E51: Min.d.Lufttemp.°C | L51: Rel. Luftfeuchte 14 Uhr | P51: >/= 3 | V51: =SUM(AF17:AF19) -> 1
A52: sss | D52: XXXX | E52: Frosttag | I52: =SUM(AA12:AA14) -> 4 | L52: >/=70% | O52: =SUM(AE12:AE14) -> 3 | P52: >/= 10 | V52: =SUM(AG17:AG19) -> 0
E53: Tropennacht | I53: 0 | L53: </=40% | O53: =SUM(AG12:AG14) -> 10
E56: Unter "Tage mit" sind die Angaben Bft 6 & Bft 8 nicht 10 min. - Mittel sonder 2,5 s - Werte.
E57: Wenn ein Wert auch mit einem 10 min. - Wert erreicht wird, erfolgt eine rote Markierung.
E58: Dies gilt rückwirkend auf November 2012.
F112: Tage mit Bft 6 /8 eigentlich in 10 min. - Mittel

Sheet Sichtst.
E1: Sichtweitenstatistik
B5: Wetterstation: Köttewitz | F5: Monat: | G5: April | K5: Jahr: | L5: 2015
A7: Dat. | B7: Nebeldauer | C7: Nebel | D7: Dunst | E7: Sicht | F7: Sicht | G7: Sicht | H7: Sicht
B8: in St. u. Min. | E8: mittel | F8: normal | G8: gut | H8: sehr gut
A9: 01. | B9: - | C9: - | D9: - | E9: - | F9: 1 | G9: 1 | H9: - | N9: =IF(ISNUMBER(B9),B9*24," ") ->  | O9: =IF(ISNUMBER(N9),IF(N9<1,1," ")," ") ->  | P9: =IF(ISNUMBER(N9),IF(N9<8,2," ")," ") ->  | Q9: =IF(ISNUMBER(N9),IF(N9<24,3," ")," ") ->  | R9: =MIN(O9:Q9) -> 0
A10: 02. | B10: - | C10: =IF(R10=1,1,"-") -> - | D10: 1 | E10: 1 | F10: 1 | G10: - | H10: - | R10: 0
A11: 03. | B11: - | C11: - | D11: - | E11: - | F11: 1 | G11: 1 | H11: - | R11: 0
A12: 04. | B12: - | C12: - | D12: - | E12: - | F12: 1 | G12: 1 | H12: - | R12: 0
A13: 05. | B13: - | C13: - | D13: - | E13: - | F13: 1 | G13: 1 | H13: - | R13: 0
A14: 06. | B14: - | C14: - | D14: - | E14: 1 | F14: 1 | G14: - | H14: - | R14: 0
A15: 07. | B15: - | C15: - | D15: - | E15: 1 | F15: 1 | G15: - | H15: - | R15: 0
A16: 08. | B16: - | C16: - | D16: - | E16: 1 | F16: 1 | G16: - | H16: - | R16: 0
A17: 09. | B17: - | C17: - | D17: - | E17: - | F17: 1 | G17: - | H17: - | R17: 0
A18: 10. | B18: - | C18: - | D18: - | E18: - | F18: 1 | G18: - | H18: - | R18: 0
A19: 11. | B19: - | C19: - | D19: - | E19: - | F19: 1 | G19: - | H19: - | R19: 0
A20: 12. | B20: - | C20: - | D20: - | E20: - | F20: 1 | G20: 1 | H20: - | R20: 0
A21: 13. | B21: - | C21: - | D21: - | E21: - | F21: 1 | G21: 1 | H21: - | R21: 0
A22: 14. | B22: - | C22: - | D22: - | E22: - | F22: 1 | G22: 1 | H22: - | R22: 0
A23: 15. | B23: - | C23: - | D23: - | E23: - | F23: 1 | G23: - | H23: - | R23: 0
A24: 16. | B24: - | C24: - | D24: - | E24: 1 | F24: 1 | G24: - | H24: - | R24: 0
A25: 17. | B25: - | C25: - | D25: - | E25: - | F25: 1 | G25: - | H25: - | R25: 0
A26: 18. | B26: - | C26: - | D26: - | E26: - | F26: 1 | G26: - | H26: - | R26: 0
A27: 19. | B27: - | C27: - | D27: - | E27: - | F27: 1 | G27: 1 | H27: - | R27: 0
A28: 20. | B28: - | C28: - | D28: - | E28: - | F28: 1 | G28: - | H28: - | R28: 0
A29: 21. | B29: - | C29: - | D29: - | E29: - | F29: 1 | G29: 1 | H29: - | R29: 0
A30: 22. | B30: - | C30: - | D30: - | E30: - | F30: 1 | G30: - | H30: - | R30: 0
A31: 23. | B31: - | C31: - | D31: - | E31: - | F31: 1 | G31: - | H31: - | R31: 0
A32: 24. | B32: - | C32: - | D32: - | E32: - | F32: 1 | G32: - | H32: - | R32: 0
A33: 25. | B33: - | C33: - | D33: - | E33: - | F33: 1 | G33: - | H33: - | R33: 0
A34: 26. | B34: - | C34: - | D34: - | E34: - | F34: 1 | G34: - | H34: - | R34: 0
A35: 27. | B35: - | C35: - | D35: 1 | E35: 1 | F35: 1 | G35: 1 | H35: - | R35: 0
A36: 28. | B36: - | C36: - | D36: 1 | E36: 1 | F36: 1 | G36: - | H36: - | R36: 0
A37: 29. | B37: - | C37: - | D37: - | E37: 1 | F37: 1 | G37: 1 | H37: -
A38: 30. | B38: - | C38: - | D38: - | E38: - | F38: 1 | G38: - | H38: -
A39: Su. | B39: =SUM(B9:B38) -> 00:00:00 | C39: 0 | D39: 3 | E39: 8 | F39: 30 | G39: 11 | H39: 0
B41: Anzahl der Nebeltage : | E41: =SUM(C39) -> 0
B42: Anzahl der Tage Sicht >= 50 km : | E42: =SUM(G39) -> 11

Sheet Monatsdiagramm
A1: Klimadiagramm | C1: Wetterstation Köttewitz | I1: (211 m ü. NHN)
A3: April 2015
C5: aktuell | D5: langj. Mittel | E5: Abw. vom lj. Mittel
B6: höchste Temperatur (°C): | C6: =MAX('Daten für Diagr.'!C2:C31) -> 24.8 | D6: am | E6: 2015-04-27
B7: mittlere Temperatur (°C): | C7: ='Daten für Diagr.'!B32 -> 9.11 | D7: =Kurztabelle!B47 -> 9 | E7: =C7-D7 -> 0.11 | F7: K
B8: tiefste Temperatur (°C): | C8: =MIN('Daten für Diagr.'!D2:D31) -> -1.6 | D8: am | E8: 2015-04-05
B9: Niederschlagshöhe (mm): | C9: =Kurztabelle!I42 -> 61.3 | D9: =Kurztabelle!B48 -> 42 | E9: =100/D9*C9 -> 145.952381 | F9: %
B10: Sonnenscheindauer (Std.)*: | C10: =Kurztabelle!L42 -> 155.6 | D10: =Kurztabelle!B49 -> 170 | E10: =100/D10*C10 -> 91.52941176 | F10: %
A66: *Die Wetterstation kann, durch geographische Hindernisse, nicht die maximal mögliche Sonnenscheindauer aufzeichnen. Es gilt ein Übergangsprozentsatz von: Dez 30 %; Okt/Nov & Jan/Feb 40 %; Mär & Sep 65 %; Apr 80 %; Mai - August 90 %.
A67: Diese Werte entsprechend annähernd 100 % (Normalwert Köttewitz). Nach 10 Jahren erfolgt die Umstellung des Prozentsatzes nach der örtlichen Aufzeichnung.

Sheet Daten für Diagr.
B1: Td | C1: Tmax | D1: Tmin | E1: RR | F1: Schnee | G1: Sonne | H1: Luftdr. | I1: MWT | J1: GWL | K1: Name | L1: Sonstiges
A2: 2015-04-01 | B2: 3.6 | C2: 6.7 | D2: 1.3 | E2: 6.2 | F2: 0 | G2: 1.4 | H2: 1008 | I2: 6.7 | J2: NWz | L2: Gegen 19:20 Uhr leichter Hagelschauer (WW 89). Gegen 13:40 Uhr; 15:20 Uhr leichtes Gewitter mit Graupel (WW 96). Gegen 12:40 Uhr starker Regenschauer/mäßiger Graupelschauer (WW 81 & WW 87). Gegen 03:00 Uhr; 09:30 Uhr; 10:30 Uhr; 12:00 Uhr mäßiger Regenschauer (WW 81).
A3: 2015-04-02 | B3: 2.2 | C3: 5.2 | D3: 0.7 | E3: 9 | F3: 3 | G3: 1.2 | H3: 1009.1 | I3: 6.85 | K3: T Oskar | L3: Gegen 13:30 Uhr; 15:00 Uhr leichter Graupelschauer (WW 87). Von 16:10 Uhr - 16:49 Uhr; 17:20 Uhr - 17:29 Uhr mäßiger Schneeschauer (WW 86). Von 03:20 Uhr - 04:09 Uhr; 08:00 Uhr - 11:09 Uhr mäßiger Schneefall (WW 73). Von 11:10 Uhr - 11:59 Uhr leichter Schneefall. Von 04:30 Uhr - 04:49 Uhr starker Regen (WW 65). Von 02:20 Uhr - 03:10 Uhr; 04:10 Uhr - 04:29 Uhr; 04:50 Uhr - 07:59 Uhr mäßiger Regen (WW 63).
A4: 2015-04-03 | B4: 4 | C4: 7.2 | D4: 2.2 | E4: 0.4 | F4: 0 | G4: 1.2 | H4: 1018 | I4: 7 | J4: HB | K4: H Ostra | L4: Gegen 14:30 Uhr leichter Graupelschauer (WW 87).
A5: 2015-04-04 | B5: 3.4 | C5: 9.3 | D5: -0.9 | E5: 0.6 | G5: 4.7 | H5: 1015.9 | I5: 7.15 | L5: Gegen 15:10 Uhr leichter Regenschauer (WW 81).
A6: 2015-04-05 | B6: 3.2 | C6: 8.2 | D6: -1.6 | G6: 3.7 | H6: 1021.6 | I6: 7.3
A7: 2015-04-06 | B7: 2.8 | C7: 6.6 | D7: -0.4 | E7: 2 | G7: 1.8 | H7: 1026.5 | I7: 7.45 | L7: Gegen 12:00 Uhr; 13:00 Uhr leichter Graupelschauer (WW 87). Gegen 15:20 Uhr leichter Regenschauer (WW 81). Von 08:10 Uhr - 09:09 Uhr mäßiger Schneefall (WW 73).Von 08:01 Uhr - 08:09 Uhr; 09:10 Uhr - 09:19 Uhr leichter Schneefall (WW 71).
A8: 2015-04-07 | B8: 6.2 | C8: 11.8 | D8: -0.9 | E8: 0.9 | G8: 5.9 | H8: 1033.1 | I8: 7.6
A9: 2015-04-08 | B9: 7.2 | C9: 8.2 | D9: 6.5 | E9: 0.1 | H9: 1030.7 | I9: 7.75 | J9: HM | L9: Von 02:50 Uhr - 03:39 Uhr mäßiger Regen (WW 63). Von 06:50 Uhr - 09:09 Uhr; Gegen 14:30 Uhr leichter Sprühregen (WW 51).
A10: 2015-04-09 | B10: 9.8 | C10: 15.6 | D10: 5.9 | G10: 8.8 | H10: 1029.2 | I10: 7.9
A11: 2015-04-10 | B11: 11.7 | C11: 18.9 | D11: 3.8 | G11: 9.2 | H11: 1022.6 | I11: 8.05 | J11: SWa
A12: 2015-04-11 | B12: 14.4 | C12: 22.1 | D12: 7.2 | E12: 0.9 | G12: 4.7 | H12: 1019 | I12: 8.2
A13: 2015-04-12 | B13: 10.8 | C13: 15.7 | D13: 6.1 | G13: 7 | H13: 1027.3 | I13: 8.35 | J13: HM | K13: H Padma | L13: Von 02:00 Uhr - 02:39 Uhr leichter Regenschauer (WW 80).
A14: 2015-04-13 | B14: 10.1 | C14: 13.2 | D14: 5.7 | E14: 0.1 | G14: 3.9 | H14: 1025.7 | I14: 8.5 | J14: NWz | K14: T Stefan | L14: Gegen 08:00 Uhr leichter Regenschauer (WW 80).
A15: 2015-04-14 | B15: 10.3 | C15: 15.6 | D15: 2.4 | G15: 8.3 | H15: 1025.8 | I15: 8.65 | J15: Wa | K15: H Padma
A16: 2015-04-15 | B16: 16.6 | C16: 23.1 | D16: 10.4 | G16: 9.9 | H16: 1015.9 | I16: 8.8
A17: 2015-04-16 | B17: 12 | C17: 15.2 | D17: 8.4 | E17: 1.1 | G17: 3.6 | H17: 1012.7 | I17: 8.95 | J17: NWa | K17: H Quila | L17: Von 19:30 Uhr - 19:59 Uhr mäßiger Regen (WW 63). Von 20:00 Uhr - Uhr leichter Regen (WW 61).
A18: 2015-04-17 | B18: 8.2 | C18: 12.6 | D18: 4.9 | E18: 0.3 | G18: 2.1 | H18: 1014.5 | I18: 9.1
A19: 2015-04-18 | B19: 6.2 | C19: 9.8 | D19: 2.7 | E19: 0.1 | G19: 1.7 | H19: 1022.9 | I19: 9.25 | J19: HNa | L19: Gegen 11:10 Uhr leichter Graupelschauer (WW 87). Gegen 02:30 Uhr leichter Regen (WW 61).
A20: 2015-04-19 | B20: 7.6 | C20: 14.6 | D20: 0 | G20: 9.5 | H20: 1022.6 | I20: 9.4
A21: 2015-04-20 | B21: 10.7 | C21: 17.8 | D21: 2.7 | G21: 10 | H21: 1023.5 | I21: 9.55
A22: 2015-04-21 | B22: 12.7 | C22: 20.4 | D22: 3.1 | G22: 10.4 | H22: 1024.8 | I22: 9.7 | J22: HB
A23: 2015-04-22 | B23: 7.8 | C23: 12.1 | D23: 3.5 | G23: 0.7 | H23: 1024.1 | I23: 9.85
A24: 2015-04-23 | B24: 9.8 | C24: 17.9 | D24: 1.7 | G24: 10.6 | H24: 1018.8 | I24: 10 | J24: U
A25: 2015-04-24 | B25: 13.1 | C25: 21.2 | D25: 4.2 | G25: 10.1 | H25: 1013.8 | I25: 10.15 | J25: SWz | K25: T Vasco
A26: 2015-04-25 | B26: 15.1 | C26: 21.1 | D26: 6.6 | G26: 3.8 | H26: 1009.6 | I26: 10.3
A27: 2015-04-26 | B27: 15.4 | C27: 20.8 | D27: 11.3 | E27: 1.3 | G27: 3.1 | H27: 1007.2 | I27: 10.45 | L27: Gegen 14:10 Uhr leichtes Gewitter mit Regen (WW 95). Gegen 18:10 Uhr mäßiger Regenschauer (WW 81). Gegen 12:40 Uhr leichter Regenschauer (WW 80).
A28: 2015-04-27 | B28: 14.4 | C28: 24.8 | D28: 8.7 | E28: 17 | G28: 5 | H28: 1002.1 | I28: 10.6 | L28: Von 16:45 Uhr - 18:12 Uhr leichtes Gewitter mit Regen (WW 95). Von 16:26 Uhr - 16:44 Uhr; 18:13 Uhr -19:01 Uhr leichter Regen Gewitter hörbar (WW 91). Von 19:02 Uhr - 20:59 Uhr mäßiger Regenschauer (WW 81). Von 16:15 Uhr - 16:25 Uhr; 21:00 Uhr - 21:29 Uhr leichter Regenschauer (WW 80).
A29: 2015-04-28 | B29: 5.3 | C29: 9.2 | D29: 1.7 | E29: 14.5 | H29: 1011.4 | I29: 10.75 | J29: Ws | L29: Von 12:20 Uhr - 12:59 Uhr mäßiger Schneeregen (WW 69). Von 09:00 Uhr - 09:09 Uhr; 10:20 Uhr - 11:09 Uhr starker Regen (WW 65). Von 08:30 Uhr - 08:59 Uhr; 09:10 Uhr - 10:19 Uhr; 11:10 Uhr - 12:19 Uhr; 13:00 Uhr - 14:19 Uhr mäßiger Regen (WW 63). Von 05:00 Uhr - 08:29 Uhr; 14:20 Uhr - 14:29 Uhr leichter Regen (WW 61).Vor 05:00 Uhr Regen, undefiniert (WW 60 - 63).
A30: 2015-04-29 | B30: 8.1 | C30: 13.8 | D30: 2.5 | G30: 9.7 | H30: 1020.5 | I30: 10.9 | J30: Wz
A31: 2015-04-30 | B31: 10.6 | C31: 16.6 | D31: 3.9 | E31: 6.8 | G31: 3.6 | H31: 1014.1 | I31: 11.05 | L31: Von 12:10 Uhr - 12:39 Uhr mäßiger Regenschauer (WW 81). Von 23:30 Uhr - 23:59 Uhr starker Regen (WW 65).
A32: Durchschnitt | B32: =AVERAGE(B2:B31) -> 9.11 | C32: =AVERAGE(C2:C31) -> 14.51 | D32: =AVERAGE(D2:D31) -> 3.81 | E32: - | G32: =AVERAGE(G2:G31) -> 5.557142857 | H32: =AVERAGE(H2:H31) -> 1019.033333 | I32: =AVERAGE(I2:I31) -> 8.875
A33: Mittel | B33: 9 | E33: 42 | F33: - | G33: 170 | H33: 1014.6
A89: 1
A90: 2
A91: 3
A92: 4
A93: 5
A94: 6
A95: 7
A96: 8
A97: 9
A98: 10
A99: 11
A100: 12
A101: 13
A102: 14
A103: 15
A104: 16
A105: 17
A106: 18
A107: 19
A108: 20
A109: 21
A110: 22
A111: 23
A112: 24
A113: 25
A114: 26
A115: 27
A116: 28
A117: 29
A118: 30
A119: 31

Sheet Erdbodentem.
E1: Erdbodentemperatur
B5: Wetterstation: Köttewitz | F5: Monat: | G5: April | K5: Jahr: | L5: 2015
A7: Dat. | B7: 7 Uhr | C7: 8Uhr | D7: 12 Uh | E7: 13 Uhr | F7: 19 Uhr | H7: NN | I7: 10 °C -
I8: Eindringtiefe
A9: 01. | B9: - | D9: - | F9: - | H9: - | I9: -
A10: 02. | B10: - | D10: - | F10: - | H10: - | I10: -
A11: 03. | B11: - | D11: 7,8 °C/-/8,3 °C | F11: - | H11: t | I11: < 10 °C
A12: 04. | B12: - | D12: - | F12: - | H12: - | I12: -
A13: 05. | B13: - | D13: - | F13: - | H13: - | I13: -
A14: 06. | B14: - | D14: - | F14: - | H14: - | I14: -
A15: 07. | B15: - | D15: - | F15: - | H15: - | I15: -
A16: 08. | B16: 6,6 °C/-/7,9 °C | D16: - | F16: - | H16: t | I16: < 10 °C
A17: 09. | B17: 6,8 °C/-/8,1 °C | D17: 13,2 °C/-/8,2 °C | F17: - | H17: n | I17: Bis 36 cm
A18: 10. | B18: 5,2 °C/-/9,0 °C | D18: 17,2 °C/-/9,0 °C | F18: - | H18: h | I18: Bis 45 cm
A19: 11. | B19: - | D19: - | F19: - | H19: - | I19: -
A20: 12. | B20: - | D20: - | F20: - | H20: - | I20: -
A21: 13. | B21: 9,2 °C/-/- | D21: - | F21: - | H21: n | I21: -
A22: 14. | B22: - | D22: - | F22: - | H22: - | I22: -
A23: 15. | B23: - | D23: - | F23: - | H23: - | I23: -
A24: 16. | B24: - | D24: - | F24: - | H24: - | I24: -
A25: 17. | B25: - | D25: - | F25: - | H25: - | I25: -
A26: 18. | B26: - | D26: - | F26: - | H26: - | I26: -
A27: 19. | B27: - | D27: - | F27: - | H27: - | I27: -
A28: 20. | B28: - | D28: - | F28: - | H28: - | I28: -
A29: 21. | B29: - | D29: - | F29: - | H29: - | I29: -
A30: 22. | B30: - | D30: - | F30: - | H30: - | I30: -
A31: 23. | B31: - | D31: - | F31: - | H31: - | I31: -
A32: 24. | B32: - | D32: - | F32: - | H32: - | I32: -
A33: 25. | B33: - | D33: - | F33: - | H33: - | I33: -
A34: 26. | B34: - | D34: - | F34: - | H34: - | I34: -
A35: 27. | B35: - | D35: - | F35: - | H35: - | I35: -
A36: 28. | B36: - | D36: - | F36: - | H36: - | I36: -
A37: 29. | B37: - | D37: - | F37: - | H37: - | I37: -
A38: 30. | B38: - | D38: - | F38: - | H38: - | I38: -
B40: Temperatur - 10 cm/Temperatur - 20 cm/Temperatur -50 cm
